Cogmind - Beta 11.1 @@@ ROGUE MODE // 2022.07.02 @ 22:54:15 Player: lumberblack Result: Destroyed by S-27 Virus with Autogun Performance ------------- Evolutions (3) 1500 Regions Visited (4) 800 Robots Destroyed (1) 5 Value Destroyed (36) 36 Prototype IDs (0) 0 Alien Tech Used (0) 0 Bonus (470) 470 TOTAL SCORE: 2811 Bonus ------- Pacifist 470 Cogmind --------- Core Integrity 0/700 Matter 281/300 Energy 99/100 System Corruption 0% Temperature Cool (0) Movement Core (50) Location -7/Factory Parts ------- > --- POWER (1) -------- (None) > --- PROPULSION (5) --- (None) > --- UTILITY (5) ------ (None) > --- WEAPON (2) ------- (None) > --- INVENTORY (5) ---- Light Ion Engine Light Treads Compact Wheel Compact Wheel Light Assault Rifle Peak State ------------ > --- POWER ------------ (None) > --- PROPULSION ------- Hover Unit > --- UTILITY ---------- (None) > --- WEAPON ----------- Axe > --- INVENTORY -------- Light Ion Engine Light Treads Compact Wheel Compact Wheel Light Assault Rifle [Rating: 4] Favorites ----------- Power None Propulsion Hover Unit Hover Unit Hover Unit Utility None Weapon Axe Slashing Weapon Axe Build | -11 -10 -9 -8 -7 ------- Run | Scr Mat Mat Mat Fac Slots Evolved 6 | . . 2 2 2 Power . | . . . . . Propulsion 3 | . . 1 1 1 Utility 3 | . . 1 1 1 Weapon . | . . . . . Parts Attached 5 | . . . 2 3 Power . | . . . . . Engine . | . . . . . Core . | . . . . . Reactor . | . . . . . Propulsion 1 | . . . 1 . Treads . | . . . . . Leg . | . . . . . Wheel . | . . . . . Hover 1 | . . . 1 . Flight . | . . . . . Utility . | . . . . . Device . | . . . . . Storage . | . . . . . Processor . | . . . . . Hackware . | . . . . . Protection . | . . . . . Artifact . | . . . . . Weapon 4 | . . . 1 3 Energy Gun . | . . . . . Energy Cannon . | . . . . . Ballistic Gun . | . . . . . Ballistic Cannon . | . . . . . Launcher . | . . . . . Special Weapon . | . . . . . Impact Weapon . | . . . . . Slashing Weapon 4 | . . . 1 3 Piercing Weapon . | . . . . . Special Melee Weapon . | . . . . . Unidentified Prototypes . | . . . . . Parts Lost 1 | . . . . 1 Power . | . . . . . Propulsion . | . . . . . Utility . | . . . . . Weapon 1 | . . . . 1 Highest Loss Streak 1 | . . . . 1 To Critical Strikes . | . . . . . Average Slot Usage (%) 5 | . . . 6 6 Slashing Weapon 5 | . . . 6 6 Naked Turns 126 | . 26 51 46 3 Heaviest Build 3 | . . . 3 3 Greatest Support 3 | 3 3 3 3 3 Greatest Overweight (x) . | . . . . . Average Overweight (x) . | . . . . . Largest Inventory Capacity 5 | . 5 5 5 5 Average Capacity 5 | . 5 5 5 5 Most Carried 5 | . 5 5 5 5 Average Carried 5 | . 5 5 5 5 Final Capacity 5 | 5 5 5 5 5 Final Carried 5 | 5 5 5 5 5 Class Distribution -------------------- 100% | Mutant Dominant Class ---------------- Mutant | -10/Materials Mutant | -9/Materials Mutant | -8/Materials Mutant | -7/Factory Resources | -11 -10 -9 -8 -7 ----------- Run | Scr Mat Mat Mat Fac Matter Collected 226 | 200 . . 20 6 Remotely . | . . . . . Salvage Created 20 | . . . 20 . Parts 2 | . . . 2 . Haulers Intercepted . | . . . . . Recyclers Shooed . | . . . . . Parts Field Recycled . | . . . . . Retrieved Matter . | . . . . . Parts Self-Destructed . | . . . . . Prevented . | . . . . . Kills | -11 -10 -9 -8 -7 ------- Run | Scr Mat Mat Mat Fac Combat Hostiles Destroyed . | . . . . . Classes Destroyed 1 | . . . 1 . Operator 1 | . . . 1 . Best Kill Streak 1 | . . . 1 . Combat Bots Only . | . . . . . Max Kills in Single Turn 1 | . . . 1 . Gunslinging . | . . . . . Exploded . | . . . . . Melee . | . . . . . Uniques/NPCs Destroyed . | . . . . . Combat | -11 -10 -9 -8 -7 -------- Run | Scr Mat Mat Mat Fac Damage Taken 1147 | . 98 113 207 729 Core 1101 | . 98 113 179 711 Absorbed by Shields . | . . . . . Core Remaining (%) 74 | 100 60 71 67 . Volleys Fired . | . . . . . Largest . | . . . . . Hottest . | . . . . . Shots Fired . | . . . . . Gun . | . . . . . Cannon . | . . . . . Launcher . | . . . . . Special . | . . . . . Kinetic . | . . . . . Thermal . | . . . . . Explosive . | . . . . . Electromagnetic . | . . . . . Robot Hit Streak . | . . . . . Robot Miss Streak . | . . . . . Penetration Max . | . . . . . Secondary Targets . | . . . . . Shots Hit Robots 4 | . . . 4 . Core Hits 1 | . . . 1 . Critical Kills . | . . . . . Critical Parts Destroyed . | . . . . . Critical Strikes . | . . . . . Melee Attacks 13 | . . . 10 3 Impact . | . . . . . Slashing 13 | . . . 10 3 Piercing . | . . . . . Sneak Attacks 1 | . . . 1 . Combat Hostiles . | . . . . . Follow-up Attacks . | . . . . . Damage Inflicted 200 | . . . 200 . Guns . | . . . . . Cannons . | . . . . . Explosions . | . . . . . Melee 187 | . . . 187 . Ramming 13 | . . . 13 . Kinetic . | . . . . . Thermal . | . . . . . Explosive . | . . . . . Electromagnetic . | . . . . . Impact . | . . . . . Slashing 187 | . . . 187 . Piercing . | . . . . . Highest Corruption . | . . . . . Average Corruption . | . . . . . Corruption Purged . | . . . . . Corruption Blocked . | . . . . . Overload Shots . | . . . . . Overflow Damage 15 | . . . 15 . Projectiles . | . . . . . Explosions . | . . . . . Melee 15 | . . . 15 . Knockbacks . | . . . . . Impact . | . . . . . Kinetic . | . . . . . Secondary . | . . . . . Self-Inflicted Damage 6 | . . . 6 . Shots . | . . . . . Rammed 1 | . . . 1 . Targets Rammed 1 | . . . 1 . Kicked . | . . . . . Crushed . | . . . . . Highest Temperature 2 | . 2 . . . Average Temperature 2 | . 2 . . . Received Heat Transfer 270 | . 75 60 63 72 Siege Activations . | . . . . . Robots Corrupted . | . . . . . Combat Hostiles . | . . . . . Parts Fried . | . . . . . Impact Corruptions . | . . . . . Robots Melted . | . . . . . Combat Hostiles . | . . . . . Parts Melted . | . . . . . Heat Transferred . | . . . . . Parts Sabotaged . | . . . . . Parts Stolen . | . . . . . Parts Stripped . | . . . . . Power Chain Reactions . | . . . . . Missiles Intercepted . | . . . . . Alert | -11 -10 -9 -8 -7 ------- Run | Scr Mat Mat Mat Fac Peak Influence 301 | . 20 53 301 214 Initial 136 | . . 8 . 136 Average 113 | . 12 28 112 177 Maximum Alert Level 1 | . . . 1 1 Low Security (%) 83 | . 100 100 79 78 Level 1 16 | . . . 20 21 Level 2 . | . . . . . Level 3 . | . . . . . Level 4 . | . . . . . Level 5 . | . . . . . High Security . | . . . . . Max Security . | . . . . . Squads Dispatched 10 | . 1 3 4 2 Investigation 4 | . 1 1 1 1 Extermination . | . . . . . Reinforcement 6 | . . 2 3 1 Assault . | . . . . . Garrison . | . . . . . Intercept . | . . . . . Searches Triggered . | . . . . . Construction Impeded . | . . . . . Haulers Reinforced . | . . . . . Active Scanning Responses . | . . . . . Cargo Convoy Interrupts . | . . . . . Stealth | -11 -10 -9 -8 -7 --------- Run | Scr Mat Mat Mat Fac Distress Signals 1 | . . . 1 . Communications Jammed . | . . . . . Distress Signals . | . . . . . Times Spotted 53 | . 5 9 24 15 Peak Tracking Total 11 | . 5 7 9 11 Tactical Retreats 6 | . . . 5 1 Traps | -11 -10 -9 -8 -7 ------- Run | Scr Mat Mat Mat Fac Traps Triggered . | . . . . . Indirectly . | . . . . . Trap Hack Attempts . | . . . . . Triggered . | . . . . . Disarmed . | . . . . . Reprogrammed 4 | . . . . 4 Reused . | . . . . . Traps Extracted . | . . . . . Installed . | . . . . . Triggered . | . . . . . Machines | -11 -10 -9 -8 -7 ---------- Run | Scr Mat Mat Mat Fac Machines Disabled 2 | . . . . 2 Max in Single Turn 1 | . . . . 1 Machines Sabotaged . | . . . . . Garrisons Compromised . | . . . . . Overloaded Fab Kills . | . . . . . Hacking | -11 -10 -9 -8 -7 --------- Run | Scr Mat Mat Mat Fac Machines Accessed 8 | . 1 3 1 3 Terminals 8 | . 1 3 1 3 Fabricators . | . . . . . Repair Stations . | . . . . . Recycling Units . | . . . . . Scanalyzers . | . . . . . Garrison Access . | . . . . . Total Hacks 28 | . 3 12 3 10 Successful 10 | . 1 3 1 5 Failed 18 | . 2 9 2 5 Catastrophic 7 | . 1 4 . 2 Database Lockouts . | . . . . . Manual 26 | . 3 12 3 8 Terminals 28 | . 3 12 3 10 Fabricators . | . . . . . Repair Stations . | . . . . . Recycling Units . | . . . . . Scanalyzers . | . . . . . Garrison Access . | . . . . . Terminal Hacks 5 | . . 2 . 3 Terminal Index 1 | . . . . 1 Unreport Threat 2 | . . 2 . . Locate Traps 1 | . . . . 1 Reprogram Traps 1 | . . . . 1 Fabricator Hacks . | . . . . . Repair Station Hacks . | . . . . . Recycling Unit Hacks . | . . . . . Scanalyzer . | . . . . . Garrison Access Hacks . | . . . . . Unauthorized Hacks 5 | . 1 1 1 2 Terminals 5 | . 1 1 1 2 Botnet 5 | . 1 1 1 2 Fabricators . | . . . . . Repair Stations . | . . . . . Recycling Units . | . . . . . Scanalyzers . | . . . . . Garrison Access . | . . . . . Data Cores Recovered . | . . . . . Used . | . . . . . Hacking Detections 8 | . 1 3 1 3 Full Trace Events 5 | . 1 2 1 1 Feedback Events . | . . . . . Feedback Blocked . | . . . . . Robot Schematics Acquired . | . . . . . Robots Built . | . . . . . Authchips . | . . . . . Time . | . . . . . Total Robot Build Rating . | . . . . . Part Schematics Acquired . | . . . . . Parts Built . | . . . . . Authchips . | . . . . . Time . | . . . . . Total Part Build Rating . | . . . . . Parts Repaired . | . . . . . Time . | . . . . . Parts Recycled . | . . . . . Recycled Matter . | . . . . . Retrieved Matter . | . . . . . Retrieved Components . | . . . . . Parts Scanalyzed . | . . . . . Part Schematics Acquired . | . . . . . Parts Damaged . | . . . . . Bothacking | -11 -10 -9 -8 -7 ------------ Run | Scr Mat Mat Mat Fac Used RIF Installer . | . . . . . Robots Hacked . | . . . . . Non-combat . | . . . . . Combat . | . . . . . Robot Hacks Applied . | . . . . . Relay Couplers Released . | . . . . . Fabnet Peak Effective % . | . . . . . Robots Rewired . | . . . . . Allies Hacked . | . . . . . Hacks Repelled . | . . . . . Allies | -11 -10 -9 -8 -7 -------- Run | Scr Mat Mat Mat Fac Total Allies . | . . . . . Largest Group . | . . . . . Highest-Rated Group . | . . . . . Highest-Rated Ally . | . . . . . Total Orders . | . . . . . Ally Attacks . | . . . . . Total Damage . | . . . . . Kills . | . . . . . Allies Corrupted . | . . . . . Allies Melted . | . . . . . Intel | -11 -10 -9 -8 -7 ------- Run | Scr Mat Mat Mat Fac Robot Analysis Total . | . . . . . Derelict Logs Recovered . | . . . . . Drone Launches . | . . . . . Drone Recoveries . | . . . . . Exploration | -11 -10 -9 -8 -7 ------------- Run | Scr Mat Mat Mat Fac Turns Passed 349 | . 26 51 164 108 Spaces Moved 608 | 1 52 102 263 190 Core 608 | 1 52 102 263 190 Treads . | . . . . . Legs . | . . . . . Wheels . | . . . . . Hover . | . . . . . Flight . | . . . . . Fastest Speed 50 | 50 50 50 50 50 Average Speed 50 | 50 50 50 50 50 Slowest Speed 50 | 50 50 50 50 50 Overloaded Moves . | . . . . . Propulsion Burnouts . | . . . . . Robots Hopped . | . . . . . Cave-ins Triggered . | . . . . . Exploration Rate (%) 19 | 2 24 22 38 12 Regions Visited 4 Branch Regions . Pre-discovered Areas . | . . . . . Known Exits Taken . | . . . . . Unknown Exits Taken 4 | 1 1 1 1 . Scrap Searched . | . . . . . Spaces Dug 7 | . . . 6 1 Terrain Destroyed 7 | . . . 6 1 Melee 7 | . . . 6 1 Projectile . | . . . . . AOE . | . . . . . Terrain Rammed . | . . . . . Walls Destroyed . | . . . . . Machines Disabled . | . . . . . Actions | -11 -10 -9 -8 -7 --------- Run | Scr Mat Mat Mat Fac Total 624 | . 51 101 276 196 Wait . | . . . . . Move 604 | . 51 101 262 190 Hop . | . . . . . Pick Up . | . . . . . Fast Attach 5 | . . . 2 3 Attach . | . . . . . Detach . | . . . . . Swap . | . . . . . Drop 1 | . . . 1 . Fire . | . . . . . Melee 13 | . . . 10 3 Ram 1 | . . . 1 . Kick . | . . . . . Crush . | . . . . . Escape Stasis . | . . . . . Rewire . | . . . . . Trap . | . . . . . Miscellaneous . | . . . . . Route ------- -11/Scrapyard -10/Materials -9/Materials -8/Materials -7/Factory (discovered 1 exit: [*Fac]) History --------- Turn | Location | Event 1 | -11/Scrapyard | Released all parts (6) 1 | -11/Scrapyard | Discovered new exit (range 0) 1 | -11/Scrapyard | Entered Materials 20 | -10/Materials | Discovered new exit (range 16) 27 | -10/Materials | Entered another Materials area 27 | -9/Materials | Evolved 2 slots: Propulsion x1, Utility x1 73 | -9/Materials | Discovered new exit (range 10) 78 | -9/Materials | Entered another Materials area 78 | -8/Materials | Evolved 2 slots: Propulsion x1, Utility x1 241 | -8/Materials | Discovered new exit (range 3) 242 | -8/Materials | Entered Factory 242 | -7/Factory | Evolved 2 slots: Propulsion x1, Utility x1 299 | -7/Factory | Discovered new exit (range 4) 318 | -7/Factory | Core integrity fell below 50% 321 | -7/Factory | Build established: Mutant 342 | -7/Factory | Core integrity fell below 20% 350 | -7/Factory | Destroyed by S-27 Virus with Autogun Last Messages --------------- 00292_ ALERT: Suspicious intruders detected, dispatching Cutter reinforcements to area. 00299_ EXIT=FOUND 00300_ Axe severed. 00300_ Acquired Axe. 00308_ Connecting with Terminal... >>Traps(Reprogram) Reprogrammed 4 Alarm Traps. 00308_ Terminal disabled. 00311_ Acquired 6 matter. 00316_ Knocked back. 00316_ C-17 Slicer destroyed. 00317_ Knocked back. 00317_ C-17 Slicer knocked back. 00318_ K-01 Serf collects debris. 00324_ Axe severed. 00324_ Acquired Axe. 00328_ Axe severed. 00328_ Acquired Axe. 00347_ Axe destroyed. Map ----- +----------------------------------------------------+ | ?????????????????????????????????????????????????? | | ?????????????????????????????????????????????????? | | ?????????????????????????????????????????????????? | | ?????????????????????????????????????????????????? | | ?????????????????????????????????????????????????? | | ?????????????????????????????????????????????????? | | ?????????????????????????????????????????????????? | | ?????????????????????????????????????????????????? | | ?????????????????????????????????????????????????? | | ?????????????????????????????????????????????????? | | ?????????????????????????????????????????????????? | | ?????????????????????????????????????????????????? | | ?????????????????????????????????????????????????? | | ?????????????????????????????????????????????????? | | ?????????????????????????????????????????????????? | | ?????????????? ??????????????????????????????????? | | ????????????? ?????????????????????????????????? | | ????????????? ???????????#####+#####??????????? | | ???????????? a########### #??????????? | | ???????????? #??????????? | | ???????????? u #??????????? | | ??????????? "" #??????????? | | ??????????? T" #??????????? | | ??????????# #??????????? | | ??????????# r #??????????" | | ??????????# @ s #??????????? | | ?????????????????############ #??????????? | | ?????????????????############## ###??????????? | | ?????????????????# ! ! # #????????????? | | ?????????????????# ! # #????????????? | | ?????????????????# + #????????????? | | ?????????????????# # #????????????? | | ?????????????????# """ """ # #????????????? | | ????????????????????? """ """?# ############## | | ??????????????????????""" """?# | | ??????????????????????? ??# | | ????????????????????????? ??# | | ?????????????????????????" ???# | | ?????????????????????????"S???# | | ??????????????????????????????###########+#####+## | | ??????????????????????????????????????? ??# | | ?????????????????????????????????????""" """ !# | | ???????????????????????????????????" """ """ # " | | ??????????????????????????????????"" """ """ # | | ?????????????????????????????????? # " | | ???????????????????????????????????? """ """ # | | ???????????????????????????????????? """ """ #= " | | ?????????????????????????????????????""" ?????# | | ?????????????????????????????????????? ?????? " | | ??????????????????????????????????????? ??????? | +----------------------------------------------------+ Best States ------------- Heat Dissipation 34 Energy Generation 5 Energy Capacity 100 Matter Stores 300 Matter Capacity 300 Sight Range 16 Terrain Scan Density 10 Evasion (%) 50 Item Schematics ----------------- None Robot Schematics ------------------ None Fabricated ------------ Nothing Alien Tech Used ----------------- None Achievements -------------- None Challenges ------------ None Game ------ Seed PoweredComponentVibroblade Manual? 0 Play Time 00:10:32 Cumulative 380.8 hours Start 2022.07.02 @ 22:46:14 End 2022.07.02 @ 22:54:15 Sessions 1 Manual Loads 0 Difficulty Rogue Special Mode None Game No. 355 Rogue 355 Adventurer 0 Explorer 0 Win Type - Total 8 Types 5/1/2/0/0/0/0/0/0 Lore% 56 Gallery% 76 Achievement% 65 Wizard Run 0 Options --------- ASCII 0 Keyboard 0 Movement Numpad Keybinds 0 Fullscreen 2 Font 18/TerminusBold Map View 76x50 Tactical HUD 1 Map Filters NONE Filters NONE Steam 1 RUN: 0dd9800f-869e-4364-b43a-3878e58e4b95